bitfinex/quotes_ETHUSD_20250722
["timestamp","ask_amount","ask_price","bid_price","bid_amount"]
[1753148942403,0.002,3776.4,3775.9,7.02536236]
[1753148942605,0.002,3776.4,3776.0,0.4457]
[1753148942951,0.8725,3776.3,3775.5,0.4457]
[1753148943154,0.8725,3776.3,3775.6,4.40348585]
[1753148943446,0.8725,3776.3,3775.6,0.02648585]
[1753148943447,0.8225,3776.3,3775.6,0.02648585]
[1753148943666,0.8225,3776.3,3775.6,4.376]
[1753148943815,0.8225,3776.3,3775.3,0.8963]
[1753148944018,0.132,3775.5,3774.9,1.0128]
[1753148944230,0.132,3775.5,3775.0,4.376]
[1753148944451,0.132,3775.5,3775.0,4.84819006]
[1753148944646,0.132,3775.5,3775.0,4.40249006]
[1753148944846,0.132,3775.5,3775.2,2.64881034]
[1753148945047,0.132,3775.7,3775.2,0.02648866]
[1753148945253,0.132,3775.7,3775.3,0.4457]
[1753148945436,0.132,3775.7,3775.4,0.47218725]
[1753148945618,0.132,3775.7,3775.4,0.4457]
[1753148946018,3.91050169,3776.3,3775.1,7.15692154]
[1753148946019,3.47060734,3776.3,3775.6,2.64858565]
[1753148946247,3.47060734,3776.3,3775.7,3.54120091]
[1753148946248,0.132,3776.3,3775.7,3.54120091]
[1753148946448,0.002,3776.4,3775.8,0.4457]
[1753148946676,0.002,3776.4,3776.0,0.132]
[1753148947353,0.002,3776.4,3776.0,2.78029679]
[1753148947852,0.002,3776.4,3776.0,0.132]
[1753148948216,0.002,3776.4,3776.0,0.5777]
[1753148948621,0.002,3776.4,3776.0,0.9895756]
[1753148948822,0.002,3776.4,3776.0,3.19214291]
[1753148949044,0.002,3776.4,3776.1,0.4457]
[1753148949244,0.002,3776.4,3776.0,0.5438756]
[1753148949451,0.002,3776.4,3776.1,2.64816571]
[1753148950037,0.002,3776.4,3776.0,3.19216127]
[1753148950463,0.002,3776.4,3776.0,3.63786127]
[1753148951967,0.002,3776.4,3776.0,3.22598567]
[1753148952167,0.002,3776.4,3776.1,2.64821871]
[1753148952738,0.002,3776.4,3776.0,4.505]
[1753148952940,0.002,3776.4,3776.0,7.15329427]
[1753148953470,0.002,3776.4,3776.0,0.132]
[1753148953642,0.002,3776.4,3776.0,4.504]
[1753148954355,0.002,3776.4,3776.0,7.15228477]
[1753148954878,0.002,3776.4,3776.0,4.504]
[1753148958072,0.002,3776.4,3776.1,0.4623]
[1753148959561,0.002,3776.4,3776.0,2.78025229]
[1753148959752,0.002,3776.4,3776.0,3.24255229]
[1753148959969,0.002,3776.4,3776.1,2.64823291]
[1753148960169,0.002,3776.4,3776.0,0.132]
[1753148960352,0.002,3776.4,3776.1,0.4623]
[1753148961987,0.002,3776.4,3776.1,3.11051744]
[1753148962192,0.002,3776.4,3776.1,0.4623]
[1753148963492,0.002,3776.4,3776.1,3.11053354]
[1753148963794,0.002,3776.4,3776.1,0.4623]
[1753148965672,0.002,3776.4,3776.0,0.132]
[1753148966588,2.65003859,3776.4,3776.0,4.499]
[1753148967198,2.65003372,3776.4,3776.0,4.499]
[1753148967392,3.10153372,3776.4,3776.0,4.499]
[1753148967719,0.132,3776.0,3775.7,4.367]
[1753148968087,0.132,3776.0,3775.6,7.01456668]
[1753148968277,0.132,3776.0,3775.7,2.64850734]
[1753148968604,0.132,3776.0,3775.6,4.8283]
[1753148968779,0.002,3776.4,3775.8,2.64837687]
[1753148968976,0.132,3776.3,3775.8,2.64837687]
[1753148969224,0.132,3776.3,3775.9,0.4623]
[1753148969401,0.132,3776.3,3775.9,2.64836107]
[1753148969601,0.132,3776.3,3775.8,2.64843158]
[1753148969799,0.132,3776.3,3775.7,3.83650351]
[1753148970010,0.132,3776.3,3775.8,4.365]
[1753148970208,3.09959697,3776.3,3775.7,4.365]
[1753148970505,0.132,3776.1,3775.7,4.365]
[1753148970880,0.132,3776.1,3775.8,0.4623]
[1753148971082,0.132,3776.3,3775.9,0.4623]
[1753148971482,0.132,3776.3,3775.7,4.497]
[1753148971812,2.64816482,3776.2,3775.6,4.364]
[1753148972008,0.132,3776.0,3775.6,4.364]
[1753148972381,0.132,3776.0,3775.5,4.365]
[1753148973183,0.132,3776.0,3775.5,0.001]
[1753148973390,1.07411297,3776.1,3775.5,0.001]
[1753148973590,0.132,3775.7,3775.5,0.001]
[1753148974915,0.4515,3775.6,3775.5,0.001]
[1753148975728,0.132,3775.7,3775.5,0.001]
[1753148976739,0.5835,3775.7,3775.5,0.001]
[1753148977305,0.132,3775.7,3775.5,0.001]
[1753148977940,0.132,3775.7,3775.6,2.64858565]
[1753148978147,0.57076826,3776.0,3775.6,1.13180491]
[1753148978302,0.57076826,3775.9,3775.5,0.133]
[1753148978638,0.57076826,3775.8,3775.5,0.133]
[1753148978848,0.4515,3775.9,3775.5,0.133]
[1753148979008,0.57076826,3775.8,3775.5,0.133]
[1753148979342,1.02226826,3775.9,3775.5,0.133]
[1753148979496,1.71996033,3776.1,3775.5,0.133]
[1753148979497,0.57076826,3776.0,3775.5,0.133]
[1753148979913,1.02226826,3776.0,3775.5,0.133]
[1753148980135,0.57076826,3776.0,3775.5,0.133]
[1753148980500,1.0065,3776.1,3775.5,0.133]
[1753148980705,1.57726826,3776.1,3775.5,0.133]
[1753148980906,0.57076826,3776.0,3775.5,0.133]
[1753148981107,0.4515,3776.0,3775.5,0.133]
[1753148981843,3.09989764,3775.9,3775.5,0.001]
[1753148982149,0.132,3775.7,3775.5,0.001]
[1753148982313,3.53938565,3775.6,3775.5,0.001]
[1753148982514,1.3423,3775.6,3775.5,0.001]
[1753148983810,0.8908,3775.6,3775.5,0.001]
[1753148984013,3.99088565,3775.6,3775.5,0.001]
[1753148984633,4.56165391,3775.6,3775.5,0.001]
[1753148985312,8.34888565,3775.6,3775.5,0.001]
[1753148986248,0.8908,3775.6,3775.5,0.001]
[1753148986447,4.358,3775.6,3775.5,0.001]
[1753148986621,0.132,3775.7,3775.5,0.001]
[1753148987016,3.20852352,3775.7,3775.5,0.001]
[1753148987339,0.428,3775.6,3775.5,0.001]
[1753148987849,3.97728565,3775.6,3775.5,0.001]
[1753148988093,6.97728565,3775.6,3775.5,0.001]
[1753148988506,3.9007,3775.6,3775.5,0.001]
[1753148988659,7.356,3775.6,3775.5,0.001]
[1753148988860,10.57535391,3775.6,3775.5,0.001]
[1753148989061,7.92676826,3775.6,3775.5,0.001]
[1753148989363,10.00458565,3775.6,3775.5,0.001]
[1753148989590,10.57535391,3775.6,3775.5,0.001]
[1753148989793,11.00335391,3775.6,3775.5,0.001]
[1753148990470,11.92205391,3775.6,3775.5,0.001]
[1753148993074,12.63416922,3775.6,3775.5,0.001]
[1753148993274,11.92205391,3775.6,3775.5,0.001]
[1753148993508,19.63172552,3775.6,3775.5,0.001]
[1753148993894,20.57830141,3775.6,3775.5,0.001]
[1753148996419,21.12830141,3775.6,3775.5,0.001]
[1753148996798,8.5126298,3775.6,3775.5,0.001]
[1753148997118,11.91905391,3775.6,3775.5,0.001]
[1753148997514,12.63060756,3775.6,3775.5,0.001]
[1753148998049,11.91905391,3775.6,3775.5,0.001]
[1753148998314,12.63060756,3775.6,3775.5,0.001]
[1753148998513,7.13805391,3775.6,3775.5,0.001]
[1753148998713,8.49105391,3775.6,3775.5,0.001]
[1753148998904,11.49105391,3775.6,3775.5,0.001]
[1753149001031,11.91905391,3775.6,3775.5,0.001]
[1753149002031,11.91905391,3775.6,3774.7,0.001]
[1753149002032,3.52584697,3774.8,3774.7,0.001]
[1753149002257,7.23799837,3774.8,3774.7,0.001]
[1753149002389,7.66599837,3774.8,3774.7,0.001]
[1753149003520,7.50384697,3774.8,3774.7,0.001]
[1753149003694,7.6260167,3774.8,3774.7,0.001]
[1753149004039,6.56363832,3774.1,3773.8,0.001]
[1753149004242,14.28030548,3774.1,3774.0,1e-08]
[1753149004534,20.17807374,3774.1,3774.0,1e-08]
[1753149004829,20.37575159,3774.1,3774.0,1e-08]
[1753149005219,21.32440776,3774.1,3774.0,1e-08]
[1753149005416,16.02675159,3774.1,3774.0,1e-08]
[1753149005727,20.37575159,3774.1,3774.0,1e-08]
[1753149005892,12.81907101,3774.1,3774.0,1e-08]
[1753149006098,12.39107101,3774.1,3774.0,1e-08]
[1753149006309,11.68008443,3774.1,3774.0,1e-08]
[1753149006509,4.33208443,3774.1,3774.0,1e-08]
[1753149006694,3.76131617,3774.1,3774.0,1e-08]
[1753149006906,8.10931617,3774.1,3774.0,1e-08]
[1753149007309,8.53731617,3774.1,3774.0,1e-08]
[1753149007540,8.10931617,3774.1,3774.0,1e-08]
[1753149007736,3.76131617,3774.1,3774.0,1e-08]
[1753149008116,8.10931617,3774.1,3774.0,1e-08]
[1753149008406,8.53731617,3774.1,3774.0,1e-08]
[1753149008746,4.32979672,3774.1,3774.0,1e-08]
[1753149009041,8.10831617,3774.1,3774.0,1e-08]
[1753149009238,20.37146388,3774.1,3774.0,1e-08]
[1753149009931,2.6499894,3773.6,3773.5,0.001]
[1753149010107,6.5210894,3773.6,3773.5,0.001]
[1753149010307,11.2950894,3773.6,3773.5,0.001]
[1753149010506,11.8636212,3773.6,3773.5,0.001]
[1753149011528,19.58028836,3773.6,3773.5,0.001]
[1753149012221,15.23428836,3773.6,3773.5,0.001]
[1753149012418,4.0896212,3773.6,3773.5,0.001]
[1753149012740,6.9959894,3773.6,3773.5,0.001]
[1753149013236,2.6499894,3773.6,3773.5,0.001]
[1753149013419,6.9959894,3773.6,3773.5,0.001]
[1753149013740,10.4239894,3773.6,3773.5,0.001]
[1753149014738,10.99205624,3773.6,3773.5,0.001]
[1753149017543,0.19767785,3774.1,3773.6,0.8619]
[1753149017740,4.343,3774.0,3773.7,0.87313596]
[1753149017943,4.343,3773.9,3773.8,0.4744]
[1753149018122,2.64969692,3774.1,3773.8,0.4744]
[1753149018318,4.343,3774.0,3773.8,0.4744]
[1753149018537,6.99272624,3774.0,3773.9,0.4744]
[1753149018842,4.343,3774.0,3773.6,0.8619]
[1753149019143,2.64991917,3773.7,3773.6,0.8619]
[1753149019359,2.78191917,3773.7,3773.6,0.8619]
[1753149019646,2.6499894,3773.6,3773.5,0.001]
[1753149020950,3.5336894,3773.6,3773.5,0.001]
[1753149021752,3.9646894,3773.6,3773.5,0.001]
[1753149023533,6.9646894,3773.6,3773.5,0.001]
[1753149023850,7.53335429,3773.6,3773.5,0.001]
[1753149024947,8.24401904,3773.6,3773.5,0.001]
[1753149025152,12.58301904,3773.6,3773.5,0.001]
[1753149026056,11.44135429,3773.6,3773.5,0.001]
[1753149027338,12.39001046,3773.6,3773.5,0.001]
[1753149027943,8.48201046,3773.6,3773.5,0.001]
[1753149028162,12.82001046,3773.6,3773.5,0.001]
[1753149029278,7.10235429,3773.6,3773.5,0.001]
[1753149029576,11.44035429,3773.6,3773.5,0.001]
[1753149029736,11.43935429,3773.6,3773.5,0.001]
[1753149031369,11.87035429,3773.6,3773.5,0.001]
[1753149032350,13.29455671,3773.6,3773.5,0.001]
[1753149032554,0.8782,3773.5,3773.2,0.001]
[1753149032873,5.65055131,3772.8,3772.7,0.001]
[1753149033047,10.5552162,3772.8,3772.7,0.001]
[1753149033482,11.26772622,3772.8,3772.7,0.001]
[1753149034382,11.50556289,3772.8,3772.7,0.001]
[1753149035482,1.51969173,3772.8,3772.7,0.4754]
[1753149035695,5.85469173,3772.8,3772.7,0.4754]
[1753149035863,4.90366489,3772.8,3772.7,0.4754]
[1753149036052,0.56866489,3772.8,3772.7,0.4754]
[1753149036248,5.6158537,3772.8,3772.7,1.51799]
[1753149036653,4.334,3772.8,3772.7,1.3799]
[1753149037075,5.6158537,3772.8,3772.7,1.3799]
[1753149037661,4.334,3772.8,3772.7,1.3799]
[1753149038296,4.334,3772.8,3772.7,0.9055]
[1753149038499,4.334,3772.8,3772.7,1.3799]
[1753149038992,4.334,3772.8,3772.7,0.001]
[1753149039195,6.98455131,3772.8,3772.7,0.001]
[1753149039354,10.41555131,3772.8,3772.7,0.001]
[1753149039554,10.9842162,3772.8,3772.7,0.001]
[1753149039757,11.69740501,3772.8,3772.7,0.001]
[1753149041165,6.93240501,3772.8,3772.7,0.001]
[1753149041366,11.26340501,3772.8,3772.7,0.001]
[1753149042162,10.5502162,3772.8,3772.7,0.001]
[1753149042494,11.26340501,3772.8,3772.7,0.001]
[1753149042872,6.93240501,3772.8,3772.7,0.001]
[1753149043062,10.41155131,3772.8,3772.7,0.001]
[1753149043265,10.9802162,3772.8,3772.7,0.001]
[1753149043462,10.5492162,3772.8,3772.7,0.001]
[1753149043906,11.26240501,3772.8,3772.7,0.001]
[1753149044111,10.5492162,3772.8,3772.7,0.001]
[1753149044588,6.2192162,3772.8,3772.7,0.001]
[1753149044779,10.5482162,3772.8,3772.7,0.001]
[1753149045467,6.2192162,3772.8,3772.7,0.001]
[1753149045672,10.5482162,3772.8,3772.7,0.001]
[1753149046576,11.8374162,3772.8,3772.7,0.001]
[1753149047105,10.5482162,3772.8,3772.7,0.001]
[1753149047597,10.5472162,3772.8,3772.7,0.001]
[1753149047799,11.26021479,3772.8,3772.7,0.001]
[1753149048099,10.5472162,3772.8,3772.7,0.001]
[1753149048829,11.26025718,3772.8,3772.7,0.001]
[1753149049035,10.5472162,3772.8,3772.7,0.001]
[1753149050699,4.89466489,3772.8,3772.7,1.3117]
[1753149051100,5.60829729,3772.8,3772.7,1.3117]
[1753149051648,5.60829729,3772.8,3772.7,0.8658]
[1753149051802,5.60829729,3772.8,3772.7,1.3117]
[1753149052399,1.28229729,3772.8,3772.7,1.3117]
[1753149052596,5.60729729,3772.8,3772.7,1.3117]
[1753149053001,5.60729729,3772.8,3772.7,3.96232157]
[1753149053245,4.89366489,3772.8,3772.7,3.96232157]
[1753149053619,5.60729729,3772.8,3772.7,3.96232157]
[1753149053914,5.60729729,3772.8,3772.7,1.3117]
[1753149055028,5.60729729,3772.8,3772.7,3.96232157]
[1753149055946,4.89366489,3772.8,3772.7,1.3117]
[1753149056155,4.89366489,3772.8,3772.7,0.8658]
[1753149056357,5.60729729,3772.8,3772.7,0.4469]
[1753149056957,4.89366489,3772.8,3772.7,0.4469]
[1753149057551,4.89366489,3772.8,3772.7,0.001]
[1753149058253,5.60729729,3772.8,3772.7,0.001]
[1753149059129,4.89366489,3772.8,3772.7,0.001]
[1753149059759,7.5442162,3772.8,3772.7,0.001]
[1753149060238,8.2578486,3772.8,3772.7,0.001]
[1753149060436,16.91814943,3772.8,3772.7,0.001]
[1753149060756,16.20376382,3772.8,3772.7,0.001]
[1753149060939,16.75376382,3772.8,3772.7,0.001]
[1753149061337,17.64456382,3772.8,3772.7,0.001]
[1753149061557,18.59732827,3772.8,3772.7,0.001]
[1753149062064,12.4342162,3772.8,3772.7,0.001]
[1753149062232,17.64456382,3772.8,3772.7,0.001]
[1753149062568,18.59737951,3772.8,3772.7,0.001]
[1753149062930,12.4342162,3772.8,3772.7,0.001]
[1753149063290,13.3810725,3772.8,3772.7,0.001]
[1753149063494,7.88666489,3772.8,3772.7,0.001]
[1753149063678,7.88666489,3772.8,3772.7,0.4469]
[1753149063679,4.88666489,3772.8,3772.7,0.4469]
[1753149063885,8.60124963,3772.8,3772.7,0.4469]
[1753149064285,3.56866489,3772.8,3772.7,0.4469]
[1753149064486,5.60120785,3772.8,3772.7,0.4469]
[1753149064668,4.88666489,3772.8,3772.7,0.4469]
[1753149065075,5.83952119,3772.8,3772.7,0.4469]
[1753149065472,1.52152119,3772.8,3772.7,3.09752157]
[1753149065676,1.2832394,3772.8,3772.7,4.60288787]
[1753149066075,1.2832394,3772.8,3772.7,4.73488787]
[1753149066296,0.56866489,3772.9,3772.8,2.65055131]
[1753149066500,4.317,3773.0,3772.8,2.65055131]
[1753149066501,0.56866489,3773.0,3772.9,2.65048106]
[1753149066659,0.56866489,3773.2,3773.1,2.65034056]
[1753149066860,0.56866489,3773.4,3773.3,2.65020009]
[1753149067097,4.88466489,3773.4,3773.3,3.91710009]
[1753149067299,0.56866489,3773.6,3773.5,2.65005962]
[1753149067464,4.88466489,3773.6,3773.5,2.65005962]
[1753149067664,0.134,3773.8,3773.7,2.64991917]
[1753149067864,0.134,3773.8,3773.7,3.47091917]
[1753149067865,0.002,3773.8,3773.7,3.47091917]
[1753149068161,0.002,3773.8,3773.7,3.91681917]
[1753149068798,0.002,3773.8,3773.7,3.94331836]
[1753149069207,0.002,3773.8,3773.7,3.91681917]
[1753149069887,0.002,3773.8,3773.7,3.94331836]
[1753149070093,0.002,3773.8,3773.7,4.61086704]
[1753149070461,0.002,3773.8,3773.7,1.2669]
[1753149070662,0.002,3773.8,3773.7,0.821]
[1753149071103,0.002,3773.8,3773.7,1.2669]
[1753149071480,0.002,3773.8,3773.7,0.821]
[1753149071997,0.002,3773.8,3773.7,1.2669]
[1753149073192,0.002,3773.8,3773.7,1.65858726]
[1753149073405,0.002,3773.8,3773.7,3.91681917]
[1753149073603,0.002,3773.8,3773.7,1.2669]
[1753149074000,0.002,3773.8,3773.7,0.821]
[1753149074178,0.002,3773.8,3773.3,1.2957]
[1753149074980,0.002,3773.8,3773.4,0.4459]
[1753149075621,0.002,3773.8,3773.5,0.4459]
[1753149077898,0.002,3773.8,3773.3,3.49999868]
[1753149077899,0.132,3773.7,3773.3,0.8498]
[1753149078120,0.132,3773.7,3773.0,0.9791]
[1753149078327,2.6499894,3773.6,3773.0,0.9791]
[1753149078636,3.132,3773.7,3772.7,0.001]
[1753149078637,0.132,3773.1,3772.7,0.001]
[1753149079289,4.309,3773.2,3772.7,0.001]
[1753149079528,0.132,3772.8,3772.7,0.001]
[1753149080138,0.132,3772.8,3772.7,0.441]
[1753149080423,4.44,3772.8,3772.7,0.441]
[1753149081134,4.44,3772.8,3772.7,0.001]
[1753149081995,0.132,3772.8,3772.7,0.441]
[1753149082343,4.439,3773.3,3772.8,2.65054734]
[1753149082503,0.132,3773.3,3772.9,0.44]
[1753149082697,4.307,3773.5,3773.2,2.65021999]
[1753149082907,4.307,3773.5,3773.3,0.44]
[1753149083424,4.307,3773.5,3773.4,0.44]
[1753149083806,4.307,3773.5,3773.4,3.92082985]
[1753149084003,4.307,3773.5,3773.4,1.2707]
[1753149084356,4.307,3773.5,3773.4,3.92082985]
[1753149084850,4.307,3773.5,3773.4,1.2707]
[1753149085202,4.307,3773.5,3773.2,2.65027004]
[1753149085500,4.307,3773.5,3773.2,0.44]
[1753149086242,4.307,3773.5,3773.2,3.09024296]
[1753149086629,4.307,3773.5,3773.1,0.8307]
[1753149086843,0.132,3773.3,3773.1,0.8307]
[1753149087341,0.132,3773.3,3773.1,1.2707]
[1753149087537,0.132,3773.3,3772.8,3.50782391]
[1753149087741,0.132,3773.3,3772.9,2.65047496]
[1753149087965,0.8891,3773.4,3772.7,0.001]
[1753149088123,0.132,3772.9,3772.7,0.001]
[1753149088539,0.132,3772.9,3772.7,0.441]
[1753149088753,0.132,3772.9,3772.8,0.44]
[1753149089070,0.132,3772.9,3772.8,3.09055131]
[1753149089592,0.002,3773.8,3772.8,3.09055131]
[1753149089593,0.132,3773.6,3772.9,0.8573]
[1753149089878,0.132,3773.6,3773.0,0.4665041]
[1753149090056,0.002,3773.8,3773.7,2.64991917]
[1753149090227,4.304,3773.8,3773.7,2.64991917]
[1753149090425,0.002,3773.8,3773.7,3.08991917]
[1753149090675,0.002,3773.8,3773.7,2.64991917]
[1753149090831,0.002,3773.8,3773.7,3.08991917]
[1753149092458,0.002,3773.8,3773.6,0.132]
[1753149092771,0.132,3773.6,3773.2,0.858]
[1753149092971,0.132,3773.6,3772.7,0.133]
[1753149092972,0.132,3773.3,3772.7,0.133]
[1753149093266,0.132,3773.3,3773.1,2.65033888]
[1753149093483,0.132,3773.3,3773.2,0.44]
[1753149093690,0.002,3773.8,3773.2,3.09027032]
[1753149093982,4.3,3773.5,3773.4,2.65006834]
[1753149095349,4.299,3773.6,3773.5,2.65005962]
[1753149095556,0.002,3773.8,3773.5,3.94805962]
[1753149095792,0.002,3773.8,3773.7,2.64991917]
[1753149095953,0.002,3773.8,3773.7,3.50791917]
[1753149096155,0.002,3773.8,3773.7,4.74236704]
[1753149096567,0.002,3773.8,3773.7,4.76886623]
[1753149096854,1.42420242,3775.5,3775.3,2.64879612]
[1753149097096,0.002,3776.4,3775.3,4.03656494]
[1753149097451,0.002,3776.4,3775.3,4.47656494]
[1753149097794,0.002,3776.4,3776.3,2.64809469]
[1753149099063,0.002,3776.4,3776.3,3.11457563]
[1753149100354,0.002,3776.4,3776.3,3.08809469]
[1753149100550,0.002,3776.4,3776.3,5.02309509]
[1753149101167,0.002,3776.4,3776.3,3.93259469]
[1753149101721,0.002,3776.4,3776.3,1.2845]
[1753149101874,0.002,3776.4,3776.3,0.8445]
[1753149102198,0.002,3776.4,3776.3,3.49259469]
[1753149102402,0.002,3776.4,3776.3,3.93259469]
[1753149103016,0.002,3776.4,3776.3,4.63650695]
[1753149104621,0.002,3776.4,3776.3,8.92950695]
[1753149104803,0.002,3776.4,3776.3,8.22559469]
[1753149105609,0.002,3776.4,3776.3,8.77559469]
[1753149106893,0.132,3777.7,3777.2,2.64742028]
[1753149107100,0.132,3777.7,3777.3,2.64737818]
[1753149107409,0.132,3777.7,3777.0,6.93860214]
[1753149107410,3.0,3777.6,3777.0,4.423]
[1753149107614,3.0,3777.6,3777.0,0.132]
[1753149107909,0.132,3777.3,3776.7,2.77979426]
[1753149108130,0.132,3777.3,3776.8,2.64772676]
[1753149108817,0.132,3777.3,3776.7,2.77979911]
[1753149109018,0.4512,3777.5,3776.4,0.8366]
[1753149109226,0.132,3777.0,3776.6,2.64788434]
[1753149109534,2.6471992,3777.6,3776.6,3.08988434]
[1753149109830,3.51169467,3777.3,3776.6,3.08988434]
[1753149109996,3.46169467,3777.3,3776.6,3.08988434]
[1753149110199,0.8643,3777.3,3776.7,2.64780525]
[1753149110527,3.51169558,3777.3,3776.6,0.442]
[1753149110729,3.51169558,3777.3,3776.6,3.0898682]
[1753149110898,0.8643,3777.3,3776.6,3.0898682]
[1753149111227,0.8143,3777.3,3776.6,0.442]
[1753149111428,2.64697838,3777.9,3776.6,0.442]
[1753149111429,0.4512,3778.3,3776.7,4.31547814]
[1753149111733,3.002,3778.1,3777.2,3.52809393]
[1753149111920,0.002,3778.1,3777.7,2.64709789]
[1753149112090,0.002,3778.1,3777.5,2.64719449]
[1753149112414,0.4032,3778.5,3777.6,2.64715656]
[1753149112615,3.04981923,3778.5,3777.3,1.29347393]
[1753149112821,3.0,3778.6,3776.7,2.64779892]
[1753149112822,3.0,3778.6,3776.7,0.825]
[1753149113020,3.0,3778.3,3777.4,2.64727196]
[1753149113240,2.6465654,3778.5,3777.2,2.64741347]
[1753149113553,3.0,3778.5,3777.3,2.64733027]
[1753149113709,0.66354306,3778.7,3777.4,0.8245]
[1753149114040,0.66354306,3778.7,3778.1,2.64682896]
[1753149114260,0.8772,3778.6,3778.0,2.64688711]
[1753149114539,0.8272,3778.6,3777.8,2.67347844]
[1753149114741,0.8272,3778.6,3778.0,2.64685141]
[1753149115234,0.8272,3778.6,3778.1,2.64677499]
[1753149115434,0.8272,3778.6,3778.2,2.64674769]
[1753149115633,4.94954306,3778.7,3778.2,3.08874769]
[1753149115933,4.94954306,3778.7,3778.3,2.64668632]
[1753149116139,4.94954306,3778.7,3778.2,3.08875929]
[1753149116301,4.94954306,3778.7,3778.3,2.64667741]
[1753149116698,0.66354306,3778.7,3778.3,2.64667741]
[1753149118035,0.66354306,3778.7,3778.4,0.442]
[1753149118235,0.66354306,3778.7,3778.5,2.64655286]
[1753149118615,0.66354306,3778.7,3778.6,2.64648282]
[1753149119207,0.66354306,3778.7,3778.6,4.2300311]
[1753149119534,0.66354306,3778.7,3778.6,4.3620311]
[1753149120935,0.66354306,3778.7,3778.6,8.6460311]
[1753149122814,0.66354306,3778.7,3778.6,4.3620311]
[1753149123027,0.66354306,3778.7,3778.6,7.89318282]
[1753149123435,0.66354306,3778.7,3778.6,0.132]
[1753149123631,0.66354306,3778.7,3778.4,4.282]
[1753149123809,0.66354306,3778.7,3778.6,2.64648282]
[1753149124009,0.66354306,3778.7,3778.6,3.66828282]
[1753149124204,0.66354306,3778.7,3778.6,5.3141698]
[1753149124911,1e-08,3778.7,3778.6,5.3141698]
[1753149125333,1e-08,3778.7,3778.6,9.5951698]
[1753149126138,1e-08,3778.7,3778.6,5.3141698]
[1753149126356,1e-08,3778.7,3778.6,9.62163462]
[1753149126541,1e-08,3778.7,3778.6,17.32322984]
[1753149126746,1e-08,3778.7,3778.6,17.87322984]
[1753149127675,0.134,3780.3,3778.6,17.87322984]
[1753149127676,0.002,3780.3,3780.2,3.48436267]
[1753149128022,0.002,3780.3,3780.2,4.05836267]
[1753149128244,0.002,3780.3,3780.2,4.08481629]
[1753149129154,0.002,3780.3,3780.2,4.05836267]
[1753149129472,0.002,3780.3,3780.2,8.36381629]
[1753149129755,0.002,3780.3,3780.2,9.43828979]
[1753149131058,1e-08,3780.3,3780.2,5.85928979]
[1753149131268,0.132,3782.0,3781.4,2.64445442]
[1753149131473,0.4512,3782.3,3781.7,2.64430287]
[1753149131668,1.78036677,3782.5,3781.9,0.132]
[1753149131826,0.8357,3782.5,3781.9,0.132]
[1753149132022,1.2869,3782.5,3781.5,4.277]
[1753149132276,0.132,3782.3,3781.6,0.132]
[1753149132420,0.94466677,3782.6,3780.7,0.839]
[1753149132421,0.8357,3781.9,3780.7,0.839]
[1753149132758,0.002,3781.1,3781.0,0.132]
[1753149133221,2.64673301,3781.1,3781.0,0.132]
[1753149133424,2.64673301,3781.1,3779.4,7.72806004]
[1753149133425,2.64497625,3780.8,3780.4,0.132]
[1753149133975,2.64515275,3780.5,3780.4,0.132]
[1753149134126,2.64531021,3780.3,3779.6,4.717]
[1753149134327,0.132,3780.7,3780.0,0.132]
[1753149134531,0.132,3780.7,3780.1,0.839]
[1753149134734,2.64487858,3780.9,3780.1,1.30745432]
[1753149135070,0.9697,3781.1,3780.4,0.132]
[1753149135229,2.64494672,3780.8,3780.4,0.15845222]
[1753149135427,2.64515199,3780.6,3780.4,0.132]
[1753149135632,2.64515275,3780.5,3779.6,2.4716]
[1753149135872,2.64515275,3780.5,3780.2,0.132]
[1753149136175,2.6452927,3780.3,3780.2,0.132]
[1753149136335,0.4512,3780.7,3779.7,0.02645712]
[1753149136538,0.132,3780.6,3780.1,2.64542669]
[1753149136740,0.8377,3781.1,3780.2,0.46845362]
[1753149137073,0.8377,3781.1,3780.5,2.64514576]
[1753149137275,0.002,3781.1,3780.6,0.8638]
[1753149137421,2.64673992,3781.1,3780.7,0.132]
[1753149137766,0.002,3781.1,3780.8,2.64493085]
[1753149137971,0.002,3781.1,3780.8,0.4611]
[1753149138277,0.002,3781.1,3780.7,0.15845012]
[1753149138278,0.002,3781.1,3781.0,2.77680296]
[1753149138825,0.002,3781.1,3781.0,3.23790296]
[1753149139322,0.002,3781.1,3781.0,0.132]
[1753149139524,0.132,3781.5,3781.0,0.132]
[1753149139727,1.3402,3781.1,3780.2,5.1399]
[1753149139877,1.3402,3781.1,3780.6,0.132]
[1753149140072,3.11813097,3781.0,3780.6,0.132]
[1753149140317,3.51164083,3781.1,3780.6,0.132]
[1753149140488,0.8669,3781.1,3780.6,0.132]
[1753149140886,2.64493153,3780.9,3779.9,3.51246844]
[1753149141090,2.64493153,3780.9,3780.3,0.132]
[1753149141288,0.4733,3780.8,3780.3,0.132]
[1753149141492,2.64501282,3780.7,3780.3,0.132]
[1753149141695,0.4733,3780.6,3780.3,0.132]
[1753149141915,2.64499818,3780.8,3780.3,0.132]
[1753149142120,2.64499818,3780.8,3780.0,2.64549158]
[1753149142121,0.002,3782.7,3782.0,2.64409172]
[1753149142328,0.002,3782.7,3782.0,2.64410006]
[1753149142624,0.8689,3782.7,3781.8,3.10527711]
[1753149142825,0.8689,3782.7,3781.8,0.4611]